lending/lending_fUSD_20240622
["ID","MTS","AMOUNT","RATE_DAILY","PERIOD"]
[330177029,1719075292619,-202.2102,0.00048971,14]
[330177030,1719075292654,-202.2102,0.00048971,14]
[330177031,1719075292689,-151.0,0.00048971,14]
[330177032,1719075292730,-101074.08008439,0.00048972,120]
[330177034,1719075323206,2533.658486,0.00025,30]
[330177042,1719076094898,171.55,0.00025234,120]
[330177055,1719076231726,-739.07132208,0.00018,2]
[330177056,1719076231739,-778.95,0.00018389,2]
[330177057,1719076231749,-739.0,0.00019,2]
[330177058,1719076231761,-739.0,0.0002,2]
[330177059,1719076231772,-499.99,0.0002,2]
[330177060,1719076231784,-250.0,0.00020101,2]
[330177061,1719076231794,-843.39,0.00020168,2]
[330177062,1719076231806,-250.0,0.00020175,2]
[330177063,1719076231816,-13450.05,0.00020178,2]
[330177064,1719076231827,-171.55,0.00020187,2]
[330177065,1719076231837,-200.0,0.00020191,2]
[330177066,1719076231848,-150.0,0.00020275,2]
[330177067,1719076231859,-1000.0,0.00020299,2]
[330177068,1719076231869,-556.7,0.00020318,2]
[330177069,1719076231879,-709.61,0.00020387,2]
[330177070,1719076231890,-709.61,0.00020443,2]
[330177071,1719076231900,-709.61,0.00020498,2]
[330177072,1719076231911,-709.61,0.00020554,2]
[330177073,1719076231922,-709.61,0.0002061,2]
[330177074,1719076231933,-778.95,0.00020653,2]
[330177075,1719076231943,-709.61,0.00020666,2]
[330177076,1719076231955,-709.61,0.00020722,2]
[330177077,1719076231965,-709.61,0.00020778,2]
[330177078,1719076231976,-709.61,0.00020834,2]
[330177079,1719076231988,-709.61,0.0002089,2]
[330177080,1719076231998,-168.5,0.00020924,2]
[330177081,1719076232009,-195.28,0.00020944,2]
[330177082,1719076232020,-709.61,0.00020946,2]
[330177083,1719076232030,-2906.30187792,0.00020979,2]
[330177084,1719076232043,-239.51803736,0.00020979,2]
[330177085,1719076232054,-290.92196264,0.00020997,2]
[330177086,1719076232086,-5555.57982055,0.00020997,2]
[330177087,1719076232100,-795.57001,0.00020997,2]
[330177088,1719076232119,-3600.0,0.00020997,2]
[330177089,1719076232158,-355.02989947,0.00020997,2]
[330177092,1719076232172,-443.73261381,0.00020997,2]
[330177095,1719076232195,-320.9233241,0.00020997,2]
[330177128,1719076237769,-8680.10819153,0.00020997,2]
[330177132,1719076237809,-443.13092382,0.00020997,2]
[330177141,1719076239834,-4758.22116171,0.00020997,2]
[330177142,1719076239843,-1250.0,0.00021,2]
[330177143,1719076239853,-739.0,0.00021,2]
[330177144,1719076239863,-709.61,0.00021002,2]
[330177145,1719076239873,-709.61,0.00021058,2]
[330177146,1719076239882,-5439.08047827,0.00021099,2]
[330177147,1719076239892,-709.61,0.00021114,2]
[330177148,1719076239901,-709.61,0.00021169,2]
[330177149,1719076239911,-4452.1692152,0.00021195,2]
[330177150,1719076239920,-709.61,0.00021225,2]
[330177151,1719076239929,-709.61,0.00021281,2]
[330177152,1719076239939,-709.61,0.00021337,2]
[330177153,1719076239949,-709.61,0.00021393,2]
[330177154,1719076239958,-502.33311118,0.00021448,2]
[330177155,1719076239967,-709.61,0.00021449,2]
[330177156,1719076239977,-211.9917,0.00021617,2]
[330177157,1719076239988,-155.0,0.00021643,2]
[330177158,1719076239996,-169.01931727,0.00021643,2]
[330177159,1719076240005,-154.92,0.00021644,2]
[330177160,1719076240018,-156.59,0.00021644,2]
[330177161,1719076240027,-155.1014532,0.00021689,2]
[330177162,1719076240036,-293.52980578,0.00021692,2]
[330177163,1719076240046,-195.9976809,0.00021692,2]
[330177164,1719076240055,-171.40197402,0.00021693,2]
[330177165,1719076240064,-155.0,0.00021706,2]
[330177166,1719076240073,-163.57668758,0.00021716,2]
[330177167,1719076240082,-161.05117831,0.00021716,2]
[330177168,1719076240092,-283.46778865,0.00021716,2]
[330177169,1719076240101,-34185.0918,0.00021717,2]
[330177170,1719076240110,-1000.0,0.00021717,2]
[330177171,1719076240120,-387.3479,0.00021717,2]
[330177172,1719076240130,-3013.31934795,0.00021717,2]
[330177173,1719076240168,-51085.39265715,0.00021717,2]
[330177174,1719076240177,-339.31808863,0.00021799,2]
[330177175,1719076240186,-235.17702148,0.0002181,2]
[330177176,1719076240196,-158.22591328,0.0002181,2]
[330177177,1719076240206,-155.0,0.0002181,2]
[330177178,1719076240215,-1272.90615694,0.00021811,2]
[330177179,1719076240224,-502.34374156,0.00021816,2]
[330177180,1719076240234,-163.58641568,0.00021816,2]
[330177181,1719076240245,-734.7516,0.00021817,2]
[330177182,1719076240255,-1000.0,0.00021817,2]
[330177183,1719076240264,-39465.40785784,0.00021817,2]
[330177184,1719076240336,-3062.25831918,0.00021817,2]
[330177203,1719076242763,-3097.70689365,0.00021199,2]
[330177204,1719076243080,-2495.19406323,0.00021199,2]
[330177205,1719076243090,-3338.42722587,0.00021716,2]
[330177206,1719076243099,-156.42427563,0.00021809,2]
[330177207,1719076243108,-1766.45700491,0.00021817,2]
[330177209,1719076245707,-553.56974129,0.00021817,2]
[330177219,1719076245796,-57440.000016,0.00021817,2]
[330177221,1719076245808,-3693.93006249,0.00021817,2]
[330177223,1719076245819,-4391.47316,0.00021817,2]
[330177245,1719076253884,-3362.21099657,0.00021817,2]
[330177246,1719076253895,-2722.38164255,0.00021817,2]
[330177247,1719076253907,-2919.40240834,0.00021817,2]
[330177248,1719076253918,-327.6,0.00021817,2]
[330177249,1719076253931,-11938.11087065,0.00021817,2]
[330177250,1719076253942,-1671.17631581,0.00021817,2]
[330177251,1719076253954,-5603.68499,0.00021817,2]
[330177252,1719076253966,-756.81352867,0.00021817,2]
[330177253,1719076253977,-5199.61708795,0.00021817,2]
[330177254,1719076253989,-719.84129831,0.00021817,2]
[330177255,1719076254001,-6445.1,0.00021817,2]
[330177256,1719076254012,-746.56002562,0.00021817,2]
[330177257,1719076254038,-27282.06972696,0.00021817,2]
[330177259,1719076294409,300.24996814,0.00025999,60]
[330177276,1719077117441,1744.67722119,0.00025,30]
[330177290,1719077431876,-758.52,0.00018582,2]
[330177291,1719077431886,-150.8394811,0.00019625,2]
[330177292,1719077431898,-18.43609564,0.00019625,2]
[330177293,1719077431908,-300.0,0.00019725,2]
[330177294,1719077431918,-250.0,0.00020307,2]
[330177295,1719077431928,-15911.95,0.00020333,2]
[330177296,1719077431938,-1042.43,0.00020348,2]
[330177297,1719077431948,-556.7,0.0002045,2]
[330177298,1719077431957,-499.99,0.0002045,2]
[330177299,1719077431966,-250.0,0.00020473,2]
[330177300,1719077431976,-200.57,0.00020516,2]
[330177301,1719077431985,-168.5,0.00020719,2]
[330177302,1719077431995,-1000.0,0.00020812,2]
[330177303,1719077432004,-758.52,0.00020846,2]
[330177304,1719077432014,-235.17702148,0.00020997,2]
[330177305,1719077432023,-235.17702148,0.00020999,2]
[330177306,1719077432032,-1285.40729279,0.00021199,2]
[330177307,1719077432041,-1285.40729279,0.00021226,2]
[330177308,1719077432051,-265.09694393,0.00021226,2]
[330177309,1719077432060,-1067.0,0.0002129,2]
[330177310,1719077432069,-420.0,0.00021484,2]
[330177311,1719077432078,-690.00328514,0.00021581,2]
[330177312,1719077432088,-752.0,0.00021582,2]
[330177313,1719077432097,-155.0,0.00021601,2]
[330177314,1719077432107,-990.60630108,0.00021602,2]
[330177315,1719077432121,-154.2617766,0.00021604,2]
[330177316,1719077432132,-185.89307468,0.00021604,2]
[330177317,1719077432141,-38872.6972,0.00021606,2]
[330177318,1719077432152,-3362.36819952,0.00021606,2]
[330177319,1719077432163,-174.87065598,0.00021606,2]
[330177320,1719077432173,-378.49941491,0.00021631,2]
[330177321,1719077432182,-217.40040456,0.00021632,2]
[330177322,1719077432193,-527.94009131,0.00021632,2]
[330177323,1719077432202,-1487.20040438,0.00021633,2]
[330177324,1719077432211,-150.77,0.00021644,2]
[330177325,1719077432220,-314.82,0.00021644,2]
[330177326,1719077432229,-185.89307467,0.00021675,2]
[330177327,1719077432239,-517.90803403,0.00021695,2]
[330177328,1719077432248,-296327.55795271,0.00021696,2]
[330177329,1719077432260,-67037.95209629,0.00021696,2]
[330177330,1719077432270,-503.97465276,0.00021704,2]
[330177331,1719077432279,-1159.68711001,0.00021706,2]
[330177333,1719077432289,-155.0,0.00021716,2]
[330177334,1719077432298,-3789.55797518,0.00021716,2]
[330177335,1719077432323,-302.6660116,0.00021716,2]
[330177336,1719077432344,-1286.43927606,0.00021716,2]
[330177337,1719077432353,-3362.36819943,0.00021723,2]
[330177338,1719077432363,-493.4705516,0.00021732,2]
[330177341,1719077432384,-32.86401338,0.00021732,2]
[330177342,1719077432394,-155.97820346,0.00021733,2]
[330177344,1719077432403,-202.41314248,0.00021735,2]
[330177346,1719077432412,-102.32164138,0.00021735,2]
[330177348,1719077432423,-264.82796935,0.00021735,2]
[330177349,1719077432434,-2738.91134525,0.00021735,2]
[330177350,1719077432444,-51.42924383,0.00021742,2]
[330177351,1719077432456,-448.57075617,0.00021742,2]
[330177352,1719077432466,-241.07944647,0.00021746,2]
[330177353,1719077432476,-185.89307467,0.00021746,2]
[330177354,1719077432486,-154.26177654,0.00021747,2]
[330177355,1719077432496,-258.55511764,0.00021802,2]
[330177356,1719077432506,-1000.0,0.00021803,2]
[330177357,1719077432516,-1000.0,0.00021816,2]
[330177358,1719077432525,-155.0,0.00021816,2]
[330177359,1719077432535,-491.40431693,0.00021816,2]
[330177360,1719077432544,-185.89307467,0.00021817,2]
[330177361,1719077432553,-159.37216947,0.00021817,2]
[330177362,1719077432563,-155.0,0.00021817,2]
[330177363,1719077432572,-155.0,0.00021817,2]
[330177364,1719077432581,-159.37216947,0.00021817,2]
[330177365,1719077432591,-155.79328456,0.00021818,2]
[330177366,1719077432601,-437.93383648,0.00021819,2]
[330177367,1719077432610,-158.73073918,0.00021838,2]
[330177368,1719077432619,-1262.89716959,0.00021838,2]
[330177369,1719077432629,-2374.53515352,0.00021838,2]
[330177370,1719077432638,-3362.36819943,0.00021839,2]
[330177371,1719077432647,-155.0,0.00021875,2]
[330177372,1719077432656,-276.01723214,0.00021875,2]
[330177373,1719077432666,-277.03532504,0.00021875,2]
[330177374,1719077432692,-678.36292703,0.00021875,2]
[330177375,1719077432704,-345.97900744,0.00021876,2]
[330177376,1719077432714,-202.72821444,0.00021883,2]
[330177377,1719077432723,-1492.96316394,0.00021883,2]
[330177378,1719077432733,-2842.43200792,0.00021884,2]
[330177402,1719077437936,-500.6964493,0.00021731,2]
[330177404,1719077437948,-632.91344403,0.00021731,2]
[330177406,1719077437959,-202.41314248,0.00021733,2]
[330177408,1719077437969,-307.96738459,0.00021884,2]
[330177410,1719077437979,-3000.0,0.00021884,2]
[330177412,1719077437989,-918.71291301,0.00021885,2]
[330177414,1719077437999,-209.27550138,0.00021885,2]
[330177416,1719077438009,-365.07907534,0.00021886,2]
[330177419,1719077438021,-96.40546502,0.00021886,2]
[330177421,1719077438030,-158.78971575,0.00021887,2]
[330177423,1719077438040,-155.0,0.00021888,2]
[330177424,1719077438050,-302.20315317,0.00021889,2]
[330177425,1719077438061,-81.04018746,0.00021889,2]
[330177426,1719077438071,-158.58047688,0.00021889,2]
[330177427,1719077438081,-154.26177654,0.0002189,2]
[330177428,1719077438090,-558.40551392,0.00021898,2]
[330177429,1719077438118,-384.39306398,0.00021898,2]
[330177430,1719077438319,-1547.49242062,0.00021898,2]
[330177432,1719077438329,-3390.03817492,0.00021899,3]
[330177434,1719077438338,-660.16507437,0.00021908,2]
[330177436,1719077438347,-543.14708226,0.00021908,2]
[330177437,1719077438357,-1384.25652343,0.00021909,2]
[330177438,1719077438366,-1069.30039592,0.00021909,2]
[330177439,1719077438375,-269.18001074,0.00021909,2]
[330177440,1719077438385,-482.71584201,0.00021909,2]
[330177441,1719077438394,-283.57325495,0.0002191,2]
[330177442,1719077438404,-365.18124254,0.0002191,2]
[330177443,1719077438414,-150.0,0.00021916,2]
[330177444,1719077438423,-150.0,0.00021916,7]
[330177445,1719077438432,-150.0,0.00021916,7]
[330177446,1719077438442,-150.0,0.00021916,7]
[330177447,1719077438451,-150.0,0.00021916,7]
[330177448,1719077438461,-150.0,0.00021916,7]
[330177449,1719077438470,-150.0,0.00021916,7]
[330177451,1719077438479,-150.0,0.00021916,7]
[330177452,1719077438489,-3130.34997824,0.00021917,7]
[330177455,1719077438500,-33446.64145163,0.00021917,7]
[330177457,1719077438511,-8355.461751,0.00021917,7]
[330177458,1719077438524,-8892.21794659,0.00021917,7]
[330177459,1719077438534,-500.0,0.00021917,2]
[330177460,1719077438544,-500.0,0.00021917,2]
[330177461,1719077438554,-500.0,0.00021917,2]
[330177462,1719077438563,-500.0,0.00021917,2]
[330177463,1719077438573,-341.1594427,0.00021917,2]
[330177464,1719077438582,-553.44,0.00021917,2]
[330177465,1719077438592,-553.44,0.00021917,2]
[330177466,1719077438602,-553.44,0.00021917,2]
[330177467,1719077438612,-553.44,0.00021917,2]
[330177468,1719077438622,-553.44,0.00021917,2]
[330177469,1719077438631,-553.44,0.00021917,2]
[330177470,1719077438641,-553.44,0.00021917,2]
[330177471,1719077438650,-553.44,0.00021917,2]
[330177472,1719077438659,-553.44,0.00021917,2]
[330177473,1719077438669,-553.44,0.00021917,2]
[330177474,1719077438679,-553.44,0.00021917,2]
[330177475,1719077438688,-553.44,0.00021917,2]
[330177476,1719077438698,-553.44,0.00021917,2]
[330177477,1719077438707,-553.44,0.00021917,2]
[330177478,1719077438717,-1152.97,0.00021917,2]
[330177479,1719077438726,-1152.97,0.00021917,2]
[330177480,1719077438736,-1152.97,0.00021917,2]
[330177481,1719077438746,-1152.97,0.00021917,2]
[330177482,1719077438756,-1152.97,0.00021917,2]
[330177483,1719077438767,-1152.97,0.00021917,2]
[330177484,1719077438776,-1152.97,0.00021917,2]
[330177485,1719077438786,-1152.97,0.00021917,2]
[330177486,1719077438796,-1152.97,0.00021917,2]
[330177487,1719077438805,-1152.97,0.00021917,2]
[330177488,1719077438815,-1152.97,0.00021917,2]
[330177489,1719077438825,-1152.97,0.00021917,2]
[330177490,1719077438835,-1152.97,0.00021917,2]
[330177491,1719077438844,-1152.97,0.00021917,2]
[330177492,1719077438854,-1888.42,0.00021917,2]
[330177493,1719077438864,-604.49603871,0.00021917,2]
[330177503,1719077440300,-437.93383648,0.00021816,2]
[330177504,1719077440310,-366.0568031,0.00021888,2]
[330177505,1719077440320,-1283.92396129,0.00021917,2]
[330177506,1719077440330,-437.52542773,0.00021917,2]
[330177507,1719077440469,-1450.89457227,0.00021917,2]
[330177508,1719077440479,-1409.21016636,0.00021917,2]
[330177509,1719077440508,-392.09773169,0.00021917,2]
[330177532,1719077443168,-258.55511764,0.00021799,2]
[330177533,1719077443179,-87.11210195,0.00021917,2]
[330177534,1719077443189,-1888.42,0.00021917,2]
[330177535,1719077443202,-1888.42,0.00021917,2]
[330177536,1719077443213,-1888.42,0.00021917,2]
[330177537,1719077443223,-585.35338608,0.00021917,2]
[330177538,1719077443237,-359.79125939,0.00021917,2]
[330177539,1719077443271,-943.27535453,0.00021917,2]
[330177540,1719077443281,-1888.42,0.00021917,2]
[330177541,1719077443292,-1888.42,0.00021917,2]
[330177542,1719077443302,-1888.42,0.00021917,2]
[330177543,1719077443312,-1888.42,0.00021917,2]
[330177544,1719077443322,-500.0,0.00021917,2]
[330177545,1719077443332,-1888.42,0.00021917,2]
[330177546,1719077443342,-513.17,0.00021917,2]
[330177547,1719077443352,-1888.42,0.00021917,2]
[330177548,1719077443362,-500.0,0.00021917,2]
[330177549,1719077443372,-500.0,0.00021917,2]
[330177550,1719077443381,-213.5,0.00021917,2]
[330177551,1719077443391,-735.47,0.00021917,2]
[330177552,1719077443401,-735.47,0.00021917,2]
[330177553,1719077443411,-735.47,0.00021917,2]
[330177554,1719077443420,-735.47,0.00021917,2]
[330177555,1719077443430,-735.47,0.00021917,2]
[330177556,1719077443440,-735.47,0.00021917,2]
[330177557,1719077443450,-735.47,0.00021917,2]
[330177558,1719077443459,-735.47,0.00021917,2]
[330177559,1719077443469,-735.47,0.00021917,2]
[330177560,1719077443479,-735.47,0.00021917,2]
[330177561,1719077443489,-735.47,0.00021917,2]
[330177562,1719077443499,-735.47,0.00021917,2]
[330177563,1719077443508,-735.47,0.00021917,2]
[330177564,1719077443518,-735.47,0.00021917,2]
[330177565,1719077443529,-500.0,0.00021917,2]
[330177566,1719077443539,-500.0,0.00021917,2]
[330177567,1719077443549,-1856.15,0.00021917,2]
[330177568,1719077443559,-500.0,0.00021917,2]
[330177569,1719077443569,-1856.15,0.00021917,2]
[330177570,1719077443579,-500.0,0.00021917,2]
[330177571,1719077443589,-1856.15,0.00021917,2]
[330177572,1719077443600,-500.0,0.00021917,2]
[330177574,1719077443610,-500.0,0.00021917,2]
[330177576,1719077443621,-1856.15,0.00021917,2]
[330177577,1719077443632,-500.0,0.00021917,2]
[330177578,1719077443642,-181.18217849,0.00021917,2]
[330177579,1719077443651,-760.64743036,0.00021917,2]
[330177582,1719077446155,-1262.89716959,0.00021818,2]
[330177583,1719077446164,-489.86835682,0.00021917,2]
[330177584,1719077446176,-605.63421282,0.00021917,2]
[330177585,1719077446185,-466.40191754,0.00021917,2]
[330177586,1719077446197,-284.2125,0.00021917,2]
[330177587,1719077446442,-619.69677273,0.00021917,2]
[330177588,1719077446456,-485.83880973,0.00021917,2]
[330177589,1719077446466,-1856.15,0.00021917,2]
[330177590,1719077446476,-356.30342882,0.00021917,2]
[330177591,1719077446488,-479.13564942,0.00021917,2]
[330177592,1719077446557,-431.96925012,0.00021917,2]
[330177598,1719077623845,3269.0,0.00014,2]
[330177603,1719077730848,8605.60469654,0.00012,2]
[330177607,1719077795212,155.0,0.00012,2]
[330177609,1719077801812,263.25536826,0.00012,2]
[330177611,1719077820760,1420.88257218,0.00012,2]
[330177612,1719077822086,155.25433982,0.00012,2]
[330177613,1719077822380,200.08402247,0.00012,2]
[330177614,1719077822427,155.28598211,0.00012,2]
[330177615,1719077847747,-180.02726412,0.000139,2]
[330177616,1719077847774,-304.66631445,0.000139,2]
[330177617,1719077847802,-1000.0,0.00013999,2]
[330177618,1719077847830,-300.0,0.00013999,2]
[330177619,1719077847862,-66715.30642143,0.00014,2]
[330177620,1719077869784,947.25504812,0.00012,2]
[330177621,1719077881822,263.25536826,0.00012,2]
[330177622,1719077892830,263.25536826,0.00012,2]
[330177623,1719077916221,155.0,0.00012,2]
[330177626,1719077991753,789.37920677,0.00012,2]
[330177627,1719077999830,263.25536826,0.00012,2]
[330177628,1719078017229,155.0,0.00012,2]
[330177632,1719078085760,411.26656673,0.00012,2]
[330177633,1719078098329,224.68942212,0.00012,2]
[330177636,1719078127296,155.0,0.00012,2]
[330177638,1719078190765,411.26656673,0.00012,2]
[330177639,1719078236246,196.49386989,0.00012,2]
[330177640,1719078300440,411.26656673,0.00012,2]
[330177643,1719078402763,411.26656673,0.00012,2]
[330177644,1719078486756,411.26656673,0.00012,2]
[330177647,1719078577808,411.26656673,0.00012,2]
[330177671,1719078632144,-164.16558676,0.00013119,2]
[330177673,1719078632154,-307.87441324,0.00013129,2]
[330177675,1719078632167,-400.87558676,0.00013129,2]
[330177676,1719078632176,-18.05393084,0.00013129,2]
[330177678,1719078632188,-811.05669613,0.00013129,2]
[330177680,1719078632200,-58684.50557793,0.00013129,2]
[330177682,1719078632210,-859110.654886,0.00013129,2]
[330177683,1719078632220,-304.66631445,0.000134,2]
[330177684,1719078632229,-520.87899402,0.000135,2]
[330177685,1719078632238,-203.2,0.00013699,2]
[330177686,1719078632248,-500.0,0.000137,5]
[330177687,1719078632258,-42582.35129617,0.0001379,2]
[330177693,1719078632669,-690.00328514,0.00013578,2]
[330177694,1719078632679,-580.36292344,0.0001379,2]
[330177695,1719078632691,-8603.9150413,0.0001379,2]
[330177696,1719078632701,-267.97561111,0.00013799,2]
[330177697,1719078632710,-1000.0,0.000138,5]
[330177698,1719078632719,-220.02,0.0001389,2]
[330177699,1719078632729,-1500.0,0.000139,5]
[330177700,1719078632739,-181.44669515,0.00013931,2]
[330177701,1719078632749,-180.02726412,0.00013934,2]
[330177702,1719078632759,-183.48930853,0.00013934,2]
[330177703,1719078632768,-3715.2715075,0.00013934,2]
[330177704,1719078632777,-178.18494105,0.00013934,2]
[330177705,1719078632786,-33.44198925,0.00013972,2]
[330177706,1719078632821,-121.55801075,0.00013972,2]
[330177707,1719078632830,-128.92924507,0.00013973,2]
[330177708,1719078632841,-21.07075493,0.00013973,2]
[330177709,1719078632853,-164.16558676,0.0001399,2]
[330177710,1719078632863,-233.30373504,0.00013999,2]
[330177711,1719078632874,-553.94826407,0.00013999,2]
[330177712,1719078632885,-319.5176318,0.00013999,2]
[330177713,1719078632900,-641.37290133,0.00013999,2]
[330177714,1719078632912,-518.87448439,0.00013999,2]
[330177715,1719078632922,-7902.59474424,0.00014,2]
[330177716,1719078632933,-3602.44257493,0.00014,2]
[330177717,1719078632945,-20219.99783234,0.00014,2]
[330177718,1719078632957,-1951.14740453,0.00014,2]
[330177719,1719078632969,-1565.31339387,0.00014,2]
[330177720,1719078632980,-11925.58027081,0.00014,2]
[330177736,1719078638037,-589.59903905,0.00013988,2]
[330177738,1719078638047,-2929.95096095,0.00014,2]
[330177741,1719078638059,-1138.47,0.00014,2]
[330177742,1719078638071,-4483.45609934,0.00014,2]
[330177743,1719078638172,-394.14575585,0.00014,2]
[330177744,1719078638185,-312.6138,0.00014,2]
[330177745,1719078638197,-623.44199861,0.00014,2]
[330177746,1719078638209,-1200.0,0.00014,2]
[330177752,1719078639033,-321.89,0.00014,2]
[330177753,1719078639047,-292.04521374,0.00014,2]
[330177754,1719078639060,-6666.65999999,0.00014,2]
[330177755,1719078639072,-1003226.76651558,0.00014,2]
[330177756,1719078639088,-636.35352429,0.00014,2]
[330177757,1719078639416,-31769.89228542,0.00014,2]
[330177764,1719078640387,-9868.98114784,0.00014,2]
[330177765,1719078640549,-148704.22827191,0.00014,2]
[330177766,1719078640675,-10366.95234788,0.00014,2]
[330177767,1719078640686,-11693.40862841,0.00014,2]
[330177769,1719078643219,-7120.0,0.00014,2]
[330177770,1719078643231,-2539.27246372,0.00014,2]
[330177772,1719078643499,-3782.8,0.00014,2]
[330177773,1719078643511,-839.10109103,0.00014,2]
[330177779,1719078646468,-1790.18370014,0.00014,2]
[330177781,1719078777790,4285.6054,0.00013029,2]
[330177782,1719078841295,411.26656673,0.00013029,2]
[330177783,1719078922357,696.93,0.00011491,2]
[330177784,1719078948285,411.26656673,0.00013029,2]
[330177785,1719078965408,411.26656673,0.00013029,2]
[330177787,1719079078316,411.26656673,0.00013029,2]
[330177788,1719079093296,411.26656673,0.00013029,2]
[330177789,1719079200770,212.34300657,0.00013029,2]
[330177794,1719079470872,662.08,0.00012616,2]
[330177795,1719079521047,155.0,0.00013082,2]
[330177810,1719079832636,-220.02,0.0001389,2]
[330177811,1719079832645,-56.52000035,0.000139,2]
[330177812,1719079832657,-399.2491194,0.000139,2]
[330177813,1719079832667,-700.0,0.000139,5]
[330177814,1719079832677,-27.55088061,0.000139,2]
[330177815,1719079832690,-213.62716938,0.000139,2]
[330177816,1719079832699,-103.85094102,0.00013934,2]
[330177817,1719079832776,-76.1763231,0.00013934,2]
[330177818,1719079832786,-673.25462007,0.00013999,2]
[330177819,1719079832800,-326.74537993,0.00013999,2]
[330177820,1719079832808,-4137.92690847,0.00014,2]
[330177825,1719079838373,-21776.5515836,0.00014,2]
[330177826,1719079838385,-1415.50383076,0.00014,2]
[330177827,1719079838396,-307.40360557,0.00014,2]
[330177828,1719079838518,-924.54050719,0.00014,2]
[330177829,1719079838530,-370.27272899,0.00014,2]
[330177845,1719079840632,-304.66631444,0.000139,2]
[330177846,1719079840644,-4851.54254888,0.00014,2]
[330177847,1719079840656,-527.71301141,0.00014,2]
[330177848,1719079840667,-349.59060275,0.00014,2]
[330177849,1719079840679,-397.34954669,0.00014,2]
[330177850,1719079840690,-528.5269001,0.00014,2]
[330177851,1719079840702,-337.93030717,0.00014,2]
[330177852,1719079840713,-1677.4,0.00014,2]
[330177853,1719079841115,-26864.18307131,0.00014,2]
[330177854,1719079841126,-16705.55278223,0.00014,2]
[330177855,1719079844227,-702.22,0.00014,2]
[330177856,1719079844240,-1471.68034402,0.00014,2]
[330177857,1719079844251,-250.2009485,0.00014,2]
[330177858,1719079844263,-7721.71010119,0.00014,2]
[330177859,1719079844274,-9846.1845761,0.00014,2]
[330177868,1719079846779,-1116.87,0.00014,2]
[330177869,1719079846793,-504.6728537,0.00014,2]
[330177870,1719079846806,-1631.275,0.00014,2]
[330177871,1719079846817,-2247.44095932,0.00014,2]
[330177872,1719079846942,-5302.55492248,0.00014,2]
[330177873,1719079846954,-32592.01435,0.00014,2]
[330177874,1719080209233,628.97,0.00012914,2]
[330177875,1719080410759,3239.71889174,0.00013082,2]
[330177895,1719081032484,-268.07010932,0.00013425,2]
[330177902,1719081032640,-24.72743272,0.00013425,2]
[330177903,1719081032651,-415.07899166,0.00013875,2]
[330177904,1719081032662,-258.88,0.0001389,3]
[330177905,1719081032672,-57.58645919,0.00013899,2]
[330177906,1719081032796,-284.2684,0.00013899,2]
[330177923,1719081038452,-347.66822876,0.00013899,2]
[330177924,1719081038462,-117.83234618,0.000139,2]
[330177925,1719081038474,-62.19491794,0.000139,2]
[330177926,1719081038484,-398.79797979,0.000139,2]
[330177927,1719081038494,-177.3765885,0.0001399,2]
[330177928,1719081038503,-300.0,0.00013999,2]
[330177929,1719081038513,-18671.8791306,0.00014,2]
[330177930,1719081038839,-8763.3401676,0.00014,2]
[330177931,1719081038852,-798.25960881,0.00014,2]
[330177932,1719081038975,-541.51710633,0.00014,2]
[330177933,1719081038987,-25138.64005633,0.00014,2]
[330177934,1719081038999,-17848.54770864,0.00014,2]
[330177935,1719081039011,-2922.27126424,0.00014,2]
[330177936,1719081039023,-3863.4679224,0.00014,2]
[330177937,1719081039038,-5216.0,0.00014,2]
[330177938,1719081039118,-710.24089395,0.00014,2]
[330177939,1719081039131,-2269.41545763,0.00014,2]
[330177940,1719081039144,-712.25,0.00014,2]
[330177941,1719081039156,-4216.37536217,0.00014,2]